[Event "*** Titled Tuesday Blitz"]
[Site "Chess.com"]
[Date "2020.05.12"]
[Round "5"]
[White "Dinamo81"]
[Black "GOGIEFF"]
[Result "0-1"]
[WhiteElo "2620"]
[BlackElo "2945"]
[TimeControl "180+1"]
[EndTime "10:55:56 PDT"]
[Termination "GOGIEFF won by resignation"]

1. d4 {[%clk 0:03:00.9]} 1... Nf6 {[%clk 0:02:58.8]} 2. Bf4 {[%clk 0:02:59.8]}
2... c5 {[%clk 0:02:57]} 3. e3 {[%clk 0:02:57.8]} 3... e6 {[%clk 0:02:55]} 4.
Nc3 {[%clk 0:02:52.3]} 4... a6 {[%clk 0:02:48.8]} 5. d5 {[%clk 0:02:49.7]} 5...
b5 {[%clk 0:02:45.2]} 6. d6 {[%clk 0:02:42.9]} 6... Bb7 {[%clk 0:02:35.2]} 7.
Nf3 {[%clk 0:02:40.8]} 7... Qa5 {[%clk 0:02:29.3]} 8. Nd2 {[%clk 0:02:13.5]}
8... Nc6 {[%clk 0:02:20]} 9. a4 {[%clk 0:02:10.3]} 9... b4 {[%clk 0:02:19.7]}
10. Nc4 {[%clk 0:02:09.8]} 10... Qd8 {[%clk 0:02:20.2]} 11. Nb1 {[%clk
0:01:59.9]} 11... Nd5 {[%clk 0:01:59.8]} 12. Bg3 {[%clk 0:01:56.9]} 12... h5
{[%clk 0:01:56.3]} 13. h4 {[%clk 0:01:55.1]} 13... g6 {[%clk 0:01:55.2]} 14. e4
{[%clk 0:01:53.8]} 14... Nf6 {[%clk 0:01:55.1]} 15. Nbd2 {[%clk 0:01:45.7]}
15... Bg7 {[%clk 0:01:55.2]} 16. Bd3 {[%clk 0:01:42.5]} 16... Ng4 {[%clk
0:01:49.5]} 17. f3 {[%clk 0:01:13]} 17... Nge5 {[%clk 0:01:48.3]} 18. Be2 {[%clk
0:01:03.9]} 18... O-O {[%clk 0:01:45.8]} 19. O-O {[%clk 0:00:50.8]} 19... f5
{[%clk 0:01:45.3]} 20. Nxe5 {[%clk 0:00:44.3]} 20... Nxe5 {[%clk 0:01:43.7]} 21.
f4 {[%clk 0:00:44]} 21... Ng4 {[%clk 0:01:38.4]} 22. e5 {[%clk 0:00:40.7]} 22...
Ne3 {[%clk 0:01:31.7]} 23. Qc1 {[%clk 0:00:40.3]} 23... Nxf1 {[%clk 0:01:31.4]}
24. Bxf1 {[%clk 0:00:37.4]} 24... c4 {[%clk 0:01:24]} 25. Nxc4 {[%clk
0:00:36.7]} 25... Rc8 {[%clk 0:01:22.2]} 26. Qe3 {[%clk 0:00:36.1]} 26... Be4
{[%clk 0:01:14.3]} 27. Qd2 {[%clk 0:00:31.1]} 27... a5 {[%clk 0:01:04.9]} 28.
Bf2 {[%clk 0:00:30.5]} 28... Rc6 {[%clk 0:01:04.9]} 29. b3 {[%clk 0:00:26.6]}
29... Qa8 {[%clk 0:01:04.6]} 30. Re1 {[%clk 0:00:16.9]} 30... Rfc8 {[%clk
0:00:57.2]} 31. Bd4 {[%clk 0:00:14.1]} 31... Bh6 {[%clk 0:00:47.5]} 32. Qf2
{[%clk 0:00:12.6]} 32... Kf7 {[%clk 0:00:45.4]} 33. Bd3 {[%clk 0:00:12.1]} 33...
Bd5 {[%clk 0:00:37.5]} 34. Nb6 {[%clk 0:00:11.5]} 34... Rxb6 {[%clk 0:00:33.6]}
35. Bxb6 {[%clk 0:00:12.4]} 35... Rc3 {[%clk 0:00:29.4]} 36. Bd4 {[%clk
0:00:09]} 36... Rxd3 {[%clk 0:00:28.5]} 37. cxd3 {[%clk 0:00:09.9]} 37... Bxb3
{[%clk 0:00:28.9]} 38. Rc1 {[%clk 0:00:10.5]} 38... Bxa4 {[%clk 0:00:28.7]} 39.
Rc7 {[%clk 0:00:10.9]} 39... Bc6 {[%clk 0:00:28.7]} 40. Ra7 {[%clk 0:00:09.8]}
40... Qb8 {[%clk 0:00:26.5]} 41. Rxa5 {[%clk 0:00:10.2]} 41... b3 {[%clk
0:00:26.8]} 42. Bb2 {[%clk 0:00:10.3]} 42... Qb4 {[%clk 0:00:26]} 43. Ra7 {[%clk
0:00:07.1]} 43... Bxf4 {[%clk 0:00:25.7]} 44. Qe2 {[%clk 0:00:03.6]} 44... Qc5+
{[%clk 0:00:22.7]} 45. Qf2 {[%clk 0:00:03.7]} 45... Be3 {[%clk 0:00:22.2]} 0-1

[Event "*** Titled Tuesday Blitz"]
[Site "Chess.com"]
[Date "2020.05.12"]
[Round "5"]
[White "elohunter1999"]
[Black "Elshan1985"]
[Result "1-0"]
[WhiteElo "2580"]
[BlackElo "2718"]
[TimeControl "180+1"]
[EndTime "10:55:56 PDT"]
[Termination "elohunter1999 won by resignation"]

1. e4 {[%clk 0:03:00.9]} 1... c5 {[%clk 0:02:59.6]} 2. Nf3 {[%clk 0:03:00.1]}
2... Nc6 {[%clk 0:03:00.1]} 3. d4 {[%clk 0:02:59.2]} 3... cxd4 {[%clk
0:03:00.7]} 4. Nxd4 {[%clk 0:02:59.6]} 4... Nf6 {[%clk 0:02:59.9]} 5. Nc3 {[%clk
0:02:58.9]} 5... d6 {[%clk 0:03:00.5]} 6. Bg5 {[%clk 0:02:57.8]} 6... e6 {[%clk
0:03:01]} 7. Qd2 {[%clk 0:02:57]} 7... a6 {[%clk 0:03:01.3]} 8. O-O-O {[%clk
0:02:56.6]} 8... Bd7 {[%clk 0:03:01.8]} 9. f4 {[%clk 0:02:55.6]} 9... Be7 {[%clk
0:03:01]} 10. Nf3 {[%clk 0:02:50.9]} 10... b5 {[%clk 0:03:01.2]} 11. Bxf6 {[%clk
0:02:45.7]} 11... gxf6 {[%clk 0:03:00.2]} 12. f5 {[%clk 0:02:44.6]} 12... Qa5
{[%clk 0:02:58.8]} 13. Kb1 {[%clk 0:02:37.3]} 13... Rc8 {[%clk 0:02:54.3]} 14.
g3 {[%clk 0:02:19]} 14... Nb4 {[%clk 0:02:53.5]} 15. fxe6 {[%clk 0:02:00.5]}
15... fxe6 {[%clk 0:02:49.8]} 16. Bh3 {[%clk 0:01:53.5]} 16... O-O {[%clk
0:02:32.4]} 17. a3 {[%clk 0:01:41.5]} 17... Nc6 {[%clk 0:02:32.2]} 18. Nd5
{[%clk 0:01:38.9]} 18... Bd8 {[%clk 0:02:20.9]} 19. Qxa5 {[%clk 0:01:33]} 19...
Nxa5 {[%clk 0:02:15.2]} 20. Nf4 {[%clk 0:01:31.7]} 20... f5 {[%clk 0:02:11.9]}
21. Rxd6 {[%clk 0:01:18.2]} 21... Bc6 {[%clk 0:02:11.1]} 22. Nxe6 {[%clk
0:01:14.8]} 22... Bxe4 {[%clk 0:02:04.4]} 23. Nxf8 {[%clk 0:01:04]} 23... Bxf3
{[%clk 0:01:54]} 24. Bxf5 {[%clk 0:00:53]} 24... Nc4 {[%clk 0:01:23.9]} 25. Bxc8
{[%clk 0:00:31.9]} 25... Nxd6 {[%clk 0:01:22]} 26. Be6+ {[%clk 0:00:29.3]} 26...
Kxf8 {[%clk 0:01:20.1]} 27. Rf1 {[%clk 0:00:28.8]} 27... Ke7 {[%clk 0:01:20.7]}
28. Rxf3 {[%clk 0:00:25.3]} 28... Kxe6 {[%clk 0:01:21.2]} 29. g4 {[%clk
0:00:22.6]} 29... Bf6 {[%clk 0:01:19.1]} 30. Rh3 {[%clk 0:00:20.7]} 30... Nc4
{[%clk 0:01:16.8]} 31. Rxh7 {[%clk 0:00:18.3]} 31... Bxb2 {[%clk 0:01:16.7]} 32.
Rh6+ {[%clk 0:00:18.4]} 32... Kf7 {[%clk 0:01:12.9]} 33. Rxa6 {[%clk 0:00:18.9]}
33... Bxa3 {[%clk 0:01:12.9]} 34. Ka2 {[%clk 0:00:17.7]} 34... Be7 {[%clk
0:01:11.5]} 35. Kb3 {[%clk 0:00:16]} 35... Ne3 {[%clk 0:01:09.6]} 36. h3 {[%clk
0:00:14.3]} 36... b4 {[%clk 0:01:05.8]} 37. Rb6 {[%clk 0:00:14.2]} 37... Nd5
{[%clk 0:01:05.5]} 38. Rb5 {[%clk 0:00:14.2]} 38... Ke6 {[%clk 0:00:58.6]} 39.
Kc4 {[%clk 0:00:10.8]} 39... Nf4 {[%clk 0:00:51.5]} 40. g5 {[%clk 0:00:10.9]}
40... Nxh3 {[%clk 0:00:45.6]} 41. g6 {[%clk 0:00:11.1]} 41... Nf2 {[%clk
0:00:25.8]} 42. Rb6+ {[%clk 0:00:10.7]} 42... Bd6 {[%clk 0:00:23.1]} 43. g7
{[%clk 0:00:10.5]} 43... Kf7 {[%clk 0:00:23.1]} 44. Rxd6 {[%clk 0:00:10.1]}
44... Kxg7 {[%clk 0:00:23.7]} 45. Kxb4 {[%clk 0:00:10.2]} 45... Ne4 {[%clk
0:00:23.4]} 46. Rd4 {[%clk 0:00:10]} 46... Nf6 {[%clk 0:00:22.9]} 47. c4 {[%clk
0:00:10]} 47... Kf7 {[%clk 0:00:23.8]} 48. c5 {[%clk 0:00:10.1]} 48... Ke7
{[%clk 0:00:23.4]} 49. c6 {[%clk 0:00:10.2]} 49... Ne8 {[%clk 0:00:22.2]} 50.
Kb5 {[%clk 0:00:10.4]} 50... Nd6+ {[%clk 0:00:21.6]} 51. Rxd6 {[%clk 0:00:10]}
51... Kxd6 {[%clk 0:00:22]} 52. Kb6 {[%clk 0:00:10.9]} 1-0

[Event "*** Titled Tuesday Blitz"]
[Site "Chess.com"]
[Date "2020.05.12"]
[Round "5"]
[White "GM_LOADING"]
[Black "freshfoodcompany"]
[Result "1-0"]
[WhiteElo "2469"]
[BlackElo "2246"]
[TimeControl "180+1"]
[EndTime "10:55:56 PDT"]
[Termination "GM_LOADING won by resignation"]

1. e4 {[%clk 0:02:54.3]} 1... c5 {[%clk 0:02:59.4]} 2. Nf3 {[%clk 0:02:50.6]}
2... Nc6 {[%clk 0:02:59.2]} 3. d4 {[%clk 0:02:50.4]} 3... cxd4 {[%clk
0:02:59.3]} 4. Nxd4 {[%clk 0:02:51.3]} 4... Nf6 {[%clk 0:02:57.7]} 5. Nc3 {[%clk
0:02:50.7]} 5... e5 {[%clk 0:02:55.3]} 6. Ndb5 {[%clk 0:02:50.7]} 6... d6 {[%clk
0:02:53.8]} 7. Bg5 {[%clk 0:02:50.3]} 7... a6 {[%clk 0:02:53.4]} 8. Na3 {[%clk
0:02:50.1]} 8... b5 {[%clk 0:02:53.4]} 9. Bxf6 {[%clk 0:02:48.6]} 9... gxf6
{[%clk 0:02:48.2]} 10. Nd5 {[%clk 0:02:49.5]} 10... Bg7 {[%clk 0:02:44.4]} 11.
c3 {[%clk 0:02:49.2]} 11... Ne7 {[%clk 0:02:42.4]} 12. Nxe7 {[%clk 0:02:42.7]}
12... Qxe7 {[%clk 0:02:41.7]} 13. Nc2 {[%clk 0:02:43.6]} 13... Bb7 {[%clk
0:02:39.3]} 14. Qg4 {[%clk 0:02:26.5]} 14... O-O {[%clk 0:02:30.5]} 15. Ne3
{[%clk 0:02:22.7]} 15... Bc8 {[%clk 0:02:17.3]} 16. Qh4 {[%clk 0:02:15.4]} 16...
Be6 {[%clk 0:02:11.2]} 17. Be2 {[%clk 0:02:10.8]} 17... Kh8 {[%clk 0:02:07.2]}
18. Bg4 {[%clk 0:02:09.6]} 18... Rg8 {[%clk 0:01:52.4]} 19. Bf5 {[%clk
0:02:08.8]} 19... h6 {[%clk 0:01:46.8]} 20. O-O {[%clk 0:01:48.5]} 20... Rad8
{[%clk 0:01:35.8]} 21. Rfd1 {[%clk 0:01:45.8]} 21... Bf8 {[%clk 0:01:29.1]} 22.
Rd2 {[%clk 0:01:09.3]} 22... Rd7 {[%clk 0:01:07.4]} 23. Rad1 {[%clk 0:00:41.8]}
23... Bg7 {[%clk 0:00:58.9]} 24. Rd3 {[%clk 0:00:26.6]} 24... Rgd8 {[%clk
0:00:56.6]} 25. Ng4 {[%clk 0:00:22]} 25... Bxf5 {[%clk 0:00:43.4]} 26. exf5
{[%clk 0:00:22.7]} 26... Kh7 {[%clk 0:00:38.8]} 27. Rh3 {[%clk 0:00:15.7]} 27...
Rh8 {[%clk 0:00:37.4]} 28. Nxh6 {[%clk 0:00:11]} 28... Qf8 {[%clk 0:00:09.1]}
29. Nxf7+ {[%clk 0:00:09.9]} 29... Kg8 {[%clk 0:00:05.8]} 30. Nxh8 {[%clk
0:00:09.5]} 30... Qe8 {[%clk 0:00:02.5]} 31. Qh7+ {[%clk 0:00:08.2]} 31... Kf8
{[%clk 0:00:02.3]} 32. Rg3 {[%clk 0:00:07.5]} 32... Qe7 {[%clk 0:00:01.1]} 33.
Ng6+ {[%clk 0:00:07.4]} 33... Ke8 {[%clk 0:00:01.8]} 34. Nxe7 {[%clk 0:00:07.2]}
34... Kxe7 {[%clk 0:00:02.7]} 35. Rxg7+ {[%clk 0:00:06]} 35... Ke8 {[%clk
0:00:02.6]} 36. Rxd7 {[%clk 0:00:05.9]} 1-0

[Event "*** Titled Tuesday Blitz"]
[Site "Chess.com"]
[Date "2020.05.12"]
[Round "5"]
[White "SoltaniciR"]
[Black "Loiacono_Antonio"]
[Result "0-1"]
[WhiteElo "2610"]
[BlackElo "2414"]
[TimeControl "180+1"]
[EndTime "10:55:57 PDT"]
[Termination "Loiacono_Antonio won by resignation"]

1. e4 {[%clk 0:03:00.9]} 1... c6 {[%clk 0:03:00]} 2. c4 {[%clk 0:03:00.3]} 2...
d5 {[%clk 0:03:00.2]} 3. exd5 {[%clk 0:03:00.9]} 3... cxd5 {[%clk 0:03:01.1]} 4.
cxd5 {[%clk 0:03:01.2]} 4... Nf6 {[%clk 0:03:01.5]} 5. Qa4+ {[%clk 0:03:01.2]}
5... Bd7 {[%clk 0:02:59.8]} 6. Qb3 {[%clk 0:03:00]} 6... Bc8 {[%clk 0:02:53.1]}
7. Nc3 {[%clk 0:02:57.9]} 7... a6 {[%clk 0:02:51.7]} 8. a4 {[%clk 0:02:55.9]}
8... Nbd7 {[%clk 0:02:50.2]} 9. g3 {[%clk 0:02:25.7]} 9... g6 {[%clk 0:02:41.7]}
10. d4 {[%clk 0:02:19.6]} 10... Bg7 {[%clk 0:02:42]} 11. Bg2 {[%clk 0:02:19.6]}
11... O-O {[%clk 0:02:42]} 12. Nge2 {[%clk 0:02:10.6]} 12... Ne8 {[%clk
0:02:41.6]} 13. O-O {[%clk 0:02:08.1]} 13... Nd6 {[%clk 0:02:41.8]} 14. Be3
{[%clk 0:01:56.6]} 14... Nf6 {[%clk 0:02:39.7]} 15. h3 {[%clk 0:01:46.3]} 15...
Bf5 {[%clk 0:02:38.2]} 16. Nf4 {[%clk 0:01:37.4]} 16... Rc8 {[%clk 0:02:36.8]}
17. Rad1 {[%clk 0:01:37.3]} 17... h6 {[%clk 0:02:27.1]} 18. Nd3 {[%clk
0:01:36.9]} 18... Bxd3 {[%clk 0:02:26]} 19. Rxd3 {[%clk 0:01:36.3]} 19... Qd7
{[%clk 0:02:15.9]} 20. a5 {[%clk 0:01:31.7]} 20... Rc4 {[%clk 0:02:09.3]} 21.
Ra1 {[%clk 0:01:02.5]} 21... Rfc8 {[%clk 0:02:07.6]} 22. Na4 {[%clk 0:01:02.3]}
22... Rxa4 {[%clk 0:01:38.7]} 23. Qxa4 {[%clk 0:00:58.4]} 23... Qf5 {[%clk
0:01:37]} 24. Rc3 {[%clk 0:00:52.8]} 24... Rxc3 {[%clk 0:01:19.9]} 25. bxc3
{[%clk 0:00:52.4]} 25... Nxd5 {[%clk 0:01:20.1]} 26. Qb3 {[%clk 0:00:45.1]}
26... Nxe3 {[%clk 0:01:13.9]} 27. fxe3 {[%clk 0:00:44.7]} 27... Qg5 {[%clk
0:01:05.1]} 28. c4 {[%clk 0:00:32.3]} 28... Qxg3 {[%clk 0:01:02.4]} 29. Rf1
{[%clk 0:00:31.5]} 29... Bxd4 {[%clk 0:00:58.4]} 30. Rf3 {[%clk 0:00:23.2]}
30... Qe1+ {[%clk 0:00:56.6]} 31. Bf1 {[%clk 0:00:23.3]} 31... Bc5 {[%clk
0:00:47.9]} 32. Qd3 {[%clk 0:00:18.7]} 32... Nf5 {[%clk 0:00:43.8]} 33. Qe2
{[%clk 0:00:12]} 33... Qxa5 {[%clk 0:00:38.3]} 34. Rxf5 {[%clk 0:00:08.6]} 34...
gxf5 {[%clk 0:00:36.7]} 35. Kf2 {[%clk 0:00:08.4]} 35... Qc7 {[%clk 0:00:34.2]}
36. Qf3 {[%clk 0:00:08]} 36... Qe5 {[%clk 0:00:32.6]} 37. Bd3 {[%clk 0:00:06.8]}
37... f4 {[%clk 0:00:15.8]} 38. Qg4+ {[%clk 0:00:06.8]} 38... Kf8 {[%clk
0:00:13.9]} 39. Qc8+ {[%clk 0:00:06.7]} 39... Kg7 {[%clk 0:00:13.6]} 40. Qg4+
{[%clk 0:00:07.3]} 40... Qg5 {[%clk 0:00:13.5]} 41. Qxg5+ {[%clk 0:00:04.1]}
41... hxg5 {[%clk 0:00:14.4]} 42. Kf3 {[%clk 0:00:03.8]} 42... Bxe3 {[%clk
0:00:14.6]} 0-1

[Event "*** Titled Tuesday Blitz"]
[Site "Chess.com"]
[Date "2020.05.12"]
[Round "5"]
[White "chessuriel"]
[Black "Gerodot71"]
[Result "0-1"]
[WhiteElo "2161"]
[BlackElo "2422"]
[TimeControl "180+1"]
[EndTime "10:55:57 PDT"]
[Termination "Gerodot71 won by resignation"]

1. e4 {[%clk 0:03:00.9]} 1... e5 {[%clk 0:02:59.6]} 2. Nf3 {[%clk 0:02:59.5]}
2... Nc6 {[%clk 0:02:59.8]} 3. Bc4 {[%clk 0:02:59.9]} 3... Bc5 {[%clk
0:02:59.2]} 4. d3 {[%clk 0:02:58.1]} 4... Nf6 {[%clk 0:02:59.2]} 5. c3 {[%clk
0:02:57.7]} 5... O-O {[%clk 0:02:56.7]} 6. Bb3 {[%clk 0:02:57.2]} 6... d5 {[%clk
0:02:55.3]} 7. Nbd2 {[%clk 0:02:56.2]} 7... Be6 {[%clk 0:02:50.8]} 8. Qe2 {[%clk
0:02:49.6]} 8... Re8 {[%clk 0:02:48.6]} 9. O-O {[%clk 0:02:48.4]} 9... dxe4
{[%clk 0:02:39.5]} 10. dxe4 {[%clk 0:02:47.3]} 10... Qe7 {[%clk 0:02:39.3]} 11.
Re1 {[%clk 0:02:42.9]} 11... Rad8 {[%clk 0:02:37.5]} 12. Nf1 {[%clk 0:02:42.2]}
12... Bxb3 {[%clk 0:02:36.8]} 13. axb3 {[%clk 0:02:41.5]} 13... h6 {[%clk
0:02:35.9]} 14. b4 {[%clk 0:02:37.8]} 14... Bb6 {[%clk 0:02:35.5]} 15. Ng3
{[%clk 0:02:37]} 15... Qe6 {[%clk 0:02:35.4]} 16. Nh4 {[%clk 0:02:31.6]} 16...
Ne7 {[%clk 0:02:33.8]} 17. Nhf5 {[%clk 0:02:27.2]} 17... Nxf5 {[%clk 0:02:31.3]}
18. Nxf5 {[%clk 0:02:26.5]} 18... Kh7 {[%clk 0:02:06.2]} 19. Qf3 {[%clk
0:02:21.6]} 19... Ng8 {[%clk 0:02:05.7]} 20. Qh3 {[%clk 0:02:15]} 20... Rd7
{[%clk 0:02:03.1]} 21. Qh4 {[%clk 0:01:40]} 21... Ne7 {[%clk 0:01:57.9]} 22. Qg4
{[%clk 0:01:26.1]} 22... Nxf5 {[%clk 0:01:51.4]} 23. exf5 {[%clk 0:01:25.5]}
23... Qf6 {[%clk 0:01:51.7]} 24. Be3 {[%clk 0:01:22.1]} 24... Red8 {[%clk
0:01:51.2]} 25. Bxb6 {[%clk 0:01:20.4]} 25... axb6 {[%clk 0:01:52.1]} 26. h4
{[%clk 0:01:19.6]} 26... Rd2 {[%clk 0:01:49.7]} 27. Qe4 {[%clk 0:01:12.1]} 27...
Rxb2 {[%clk 0:01:45.4]} 28. Ra7 {[%clk 0:01:10.6]} 28... Rdd2 {[%clk 0:01:44.3]}
29. Rf1 {[%clk 0:01:10.3]} 29... Rbc2 {[%clk 0:00:55.2]} 30. Qc4 {[%clk
0:01:04.2]} 30... Qxf5 {[%clk 0:00:50.5]} 31. g4 {[%clk 0:00:44]} 31... Qf6
{[%clk 0:00:49.8]} 32. Qe4+ {[%clk 0:00:40.9]} 32... g6 {[%clk 0:00:50.1]} 33.
g5 {[%clk 0:00:20.2]} 33... hxg5 {[%clk 0:00:48.2]} 34. hxg5 {[%clk 0:00:21.1]}
34... Qxg5+ {[%clk 0:00:48.9]} 35. Qg2 {[%clk 0:00:21.3]} 35... Qxg2+ {[%clk
0:00:44.8]} 36. Kxg2 {[%clk 0:00:22.2]} 36... Rxc3 {[%clk 0:00:45.7]} 37. Rxb7
{[%clk 0:00:21.2]} 37... Rb2 {[%clk 0:00:45.1]} 38. Re1 {[%clk 0:00:20.7]} 38...
Rcc2 {[%clk 0:00:41.5]} 39. Rxe5 {[%clk 0:00:19.9]} 39... Rxf2+ {[%clk
0:00:40.5]} 40. Kg3 {[%clk 0:00:20]} 40... Rfc2 {[%clk 0:00:36.8]} 41. Re7
{[%clk 0:00:19.7]} 41... Kg7 {[%clk 0:00:37.2]} 42. Rexc7 {[%clk 0:00:19.1]}
42... Rxc7 {[%clk 0:00:38.1]} 43. Rxc7 {[%clk 0:00:19.3]} 43... Rxb4 {[%clk
0:00:38.8]} 44. Rb7 {[%clk 0:00:19.7]} 44... b5 {[%clk 0:00:38.6]} 45. Rb8
{[%clk 0:00:19.3]} 45... g5 {[%clk 0:00:36.7]} 46. Rb6 {[%clk 0:00:19.3]} 46...
f6 {[%clk 0:00:36.2]} 47. Kf3 {[%clk 0:00:19.2]} 47... Kg6 {[%clk 0:00:36.1]}
48. Rb8 {[%clk 0:00:20.1]} 48... g4+ {[%clk 0:00:36.1]} 49. Kg3 {[%clk
0:00:19.9]} 49... Kg5 {[%clk 0:00:36.3]} 50. Rg8+ {[%clk 0:00:18.2]} 50... Kf5
{[%clk 0:00:36.6]} 51. Rc8 {[%clk 0:00:17.9]} 51... Rb3+ {[%clk 0:00:36.7]} 52.
Kg2 {[%clk 0:00:16.6]} 52... Kg5 {[%clk 0:00:36.9]} 53. Rg8+ {[%clk 0:00:14.9]}
53... Kf4 {[%clk 0:00:37]} 54. Re8 {[%clk 0:00:14.8]} 54... f5 {[%clk
0:00:37.1]} 55. Rb8 {[%clk 0:00:12.6]} 55... Rb2+ {[%clk 0:00:37.2]} 56. Kf1
{[%clk 0:00:12.7]} 56... Kg3 {[%clk 0:00:38.1]} 0-1

[Event "*** Titled Tuesday Blitz"]
[Site "Chess.com"]
[Date "2020.05.12"]
[Round "5"]
[White "manitodeplomo"]
[Black "Mykola-Bortnyk"]
[Result "0-1"]
[WhiteElo "2606"]
[BlackElo "2875"]
[TimeControl "180+1"]
[EndTime "10:55:58 PDT"]
[Termination "Mykola-Bortnyk won on time"]

1. d4 {[%clk 0:03:00.9]} 1... Nf6 {[%clk 0:02:56.6]} 2. c4 {[%clk 0:03:00.7]}
2... e6 {[%clk 0:02:56.9]} 3. Nf3 {[%clk 0:03:00.3]} 3... b6 {[%clk 0:02:57.1]}
4. g3 {[%clk 0:02:59.9]} 4... Bb7 {[%clk 0:02:53.2]} 5. Bg2 {[%clk 0:02:59.3]}
5... Bb4+ {[%clk 0:02:53.7]} 6. Nbd2 {[%clk 0:02:58.9]} 6... O-O {[%clk
0:02:52]} 7. O-O {[%clk 0:02:58.8]} 7... d5 {[%clk 0:02:47.4]} 8. a3 {[%clk
0:02:58.5]} 8... Be7 {[%clk 0:02:46.4]} 9. b4 {[%clk 0:02:57.3]} 9... a5 {[%clk
0:02:42]} 10. b5 {[%clk 0:02:56.8]} 10... c5 {[%clk 0:02:34.2]} 11. a4 {[%clk
0:02:53.1]} 11... dxc4 {[%clk 0:02:27.4]} 12. Nxc4 {[%clk 0:02:52.4]} 12... cxd4
{[%clk 0:02:27.4]} 13. Qxd4 {[%clk 0:02:49.5]} 13... Bc5 {[%clk 0:02:22.3]} 14.
Qxd8 {[%clk 0:02:44.8]} 14... Rxd8 {[%clk 0:02:22.1]} 15. Be3 {[%clk 0:02:40.7]}
15... Bxe3 {[%clk 0:02:21.4]} 16. Nxe3 {[%clk 0:02:18.8]} 16... Nbd7 {[%clk
0:02:20.2]} 17. Rfc1 {[%clk 0:02:17]} 17... Rac8 {[%clk 0:02:18.3]} 18. Nd4
{[%clk 0:02:12.4]} 18... Bxg2 {[%clk 0:02:15.3]} 19. Kxg2 {[%clk 0:02:13.3]}
19... Nc5 {[%clk 0:02:02.6]} 20. Nc6 {[%clk 0:02:10.4]} 20... Re8 {[%clk
0:01:45.8]} 21. Nc4 {[%clk 0:02:01.2]} 21... Nb3 {[%clk 0:01:32.3]} 22. Nxb6
{[%clk 0:01:49.8]} 22... Rc7 {[%clk 0:01:28.3]} 23. Nc4 {[%clk 0:01:45.9]} 23...
Nxc1 {[%clk 0:01:22.1]} 24. Rxc1 {[%clk 0:01:45]} 24... Ra8 {[%clk 0:01:12.7]}
25. Rb1 {[%clk 0:01:37.2]} 25... Nd5 {[%clk 0:01:12.3]} 26. N4xa5 {[%clk
0:01:19.7]} 26... Nb6 {[%clk 0:01:08.5]} 27. Rb4 {[%clk 0:01:17.3]} 27... Kf8
{[%clk 0:01:07.9]} 28. e4 {[%clk 0:01:16.4]} 28... f6 {[%clk 0:01:07.8]} 29. Kf3
{[%clk 0:01:15.5]} 29... Rd7 {[%clk 0:01:05.8]} 30. Nc4 {[%clk 0:00:35.8]} 30...
Nxa4 {[%clk 0:01:02.8]} 31. b6 {[%clk 0:00:29.6]} 31... Nc5 {[%clk 0:00:57.8]}
32. N4a5 {[%clk 0:00:20.5]} 32... Nb7 {[%clk 0:00:57.8]} 33. Rb5 {[%clk
0:00:14.4]} 33... Ke8 {[%clk 0:00:50.7]} 34. Nxb7 {[%clk 0:00:12.7]} 34... Rxb7
{[%clk 0:00:51.1]} 35. Na5 {[%clk 0:00:13]} 35... Rbb8 {[%clk 0:00:44.3]} 36.
Nc6 {[%clk 0:00:10.1]} 36... Ra3+ {[%clk 0:00:38.1]} 37. Kg2 {[%clk 0:00:08.9]}
37... Rb7 {[%clk 0:00:35.5]} 38. Na5 {[%clk 0:00:08.7]} 38... Rxa5 {[%clk
0:00:32.7]} 39. Rxa5 {[%clk 0:00:09.6]} 39... Rxb6 {[%clk 0:00:33.3]} 40. Ra7
{[%clk 0:00:08.6]} 40... Kf8 {[%clk 0:00:33.4]} 41. h4 {[%clk 0:00:08.3]} 41...
Rb5 {[%clk 0:00:32.9]} 42. Kf3 {[%clk 0:00:08.1]} 42... h5 {[%clk 0:00:32.4]}
43. Kf4 {[%clk 0:00:06.7]} 43... Rb3 {[%clk 0:00:30.7]} 44. g4 {[%clk
0:00:03.4]} 44... Rh3 {[%clk 0:00:24]} 45. gxh5 {[%clk 0:00:01.5]} 45... Rxh4+
{[%clk 0:00:24.5]} 46. Ke3 {[%clk 0:00:01.7]} 46... Rxh5 {[%clk 0:00:24.8]} 47.
f4 {[%clk 0:00:01.9]} 47... Rb5 {[%clk 0:00:24.2]} 48. Kf3 {[%clk 0:00:01.7]}
48... Rb3+ {[%clk 0:00:22.9]} 49. Kg4 {[%clk 0:00:01.7]} 49... Re3 {[%clk
0:00:22.9]} 0-1

[Event "*** Titled Tuesday Blitz"]
[Site "Chess.com"]
[Date "2020.05.12"]
[Round "5"]
[White "adriangschnitzer"]
[Black "GreatOwl02"]
[Result "1-0"]
[WhiteElo "2501"]
[BlackElo "2343"]
[TimeControl "180+1"]
[EndTime "10:55:58 PDT"]
[Termination "adriangschnitzer won on time"]

1. c4 {[%clk 0:03:00.9]} 1... e5 {[%clk 0:02:59]} 2. Nc3 {[%clk 0:03:00.5]} 2...
Nf6 {[%clk 0:02:59.3]} 3. Nf3 {[%clk 0:03:00.7]} 3... Nc6 {[%clk 0:02:58.8]} 4.
e3 {[%clk 0:03:01.1]} 4... Bb4 {[%clk 0:02:56.4]} 5. Qc2 {[%clk 0:03:01.2]} 5...
d6 {[%clk 0:02:53.6]} 6. a3 {[%clk 0:02:58.9]} 6... Bxc3 {[%clk 0:02:43.7]} 7.
Qxc3 {[%clk 0:02:56.5]} 7... e4 {[%clk 0:02:43.9]} 8. Nd4 {[%clk 0:02:50.5]}
8... Ne5 {[%clk 0:02:43.7]} 9. b4 {[%clk 0:02:45.9]} 9... O-O {[%clk 0:02:41.9]}
10. Bb2 {[%clk 0:02:44.9]} 10... b6 {[%clk 0:02:40]} 11. O-O-O {[%clk
0:02:39.4]} 11... c5 {[%clk 0:02:35.3]} 12. Nc2 {[%clk 0:02:21.1]} 12... cxb4
{[%clk 0:02:31.9]} 13. axb4 {[%clk 0:02:20.2]} 13... Be6 {[%clk 0:02:30.9]} 14.
Kb1 {[%clk 0:01:28.2]} 14... Rc8 {[%clk 0:02:28.6]} 15. Na3 {[%clk 0:01:25.4]}
15... Nfg4 {[%clk 0:02:01.3]} 16. d4 {[%clk 0:01:15.4]} 16... exd3 {[%clk
0:01:40.1]} 17. Bxd3 {[%clk 0:01:14.8]} 17... Nxf2 {[%clk 0:01:29.7]} 18. Bxh7+
{[%clk 0:01:12.4]} 18... Kh8 {[%clk 0:01:29.6]} 19. Bc2 {[%clk 0:00:55]} 19...
Nxd1 {[%clk 0:01:14.4]} 20. Rxd1 {[%clk 0:00:51.7]} 20... Qg5 {[%clk 0:00:58.6]}
21. Rxd6 {[%clk 0:00:46]} 21... Nxc4 {[%clk 0:00:53]} 22. Nxc4 {[%clk
0:00:37.1]} 22... Rxc4 {[%clk 0:00:52.2]} 23. Qd3 {[%clk 0:00:33.7]} 23... Rxc2
{[%clk 0:00:49]} 24. Qxc2 {[%clk 0:00:30.5]} 24... Bf5 {[%clk 0:00:43.5]} 25. e4
{[%clk 0:00:29.8]} 25... Qf4 {[%clk 0:00:33.8]} 26. Rd4 {[%clk 0:00:10.9]} 26...
Bg6 {[%clk 0:00:29.7]} 27. g3 {[%clk 0:00:10.8]} 27... Qf1+ {[%clk 0:00:20.9]}
28. Rd1 {[%clk 0:00:10.4]} 28... Qb5 {[%clk 0:00:15.2]} 29. Re1 {[%clk
0:00:08.9]} 29... Qxb4 {[%clk 0:00:13.4]} 30. Qc1 {[%clk 0:00:08.5]} 30... Bxe4+
{[%clk 0:00:10.6]} 31. Ka1 {[%clk 0:00:03.6]} 31... Qa4+ {[%clk 0:00:10.5]} 32.
Ba3 {[%clk 0:00:03.9]} 32... Re8 {[%clk 0:00:07.8]} 33. Re3 {[%clk 0:00:03.2]}
33... Kg8 {[%clk 0:00:05.8]} 34. Ka2 {[%clk 0:00:02.8]} 34... Bd5+ {[%clk
0:00:04.2]} 35. Ka1 {[%clk 0:00:03.4]} 35... Rxe3 {[%clk 0:00:04.2]} 36. Qxe3
{[%clk 0:00:04.3]} 36... Qd1+ {[%clk 0:00:02.8]} 37. Kb2 {[%clk 0:00:04.8]}
37... Be6 {[%clk 0:00:01.8]} 38. Bb4 {[%clk 0:00:04.2]} 1-0